bitfinex-derivatives/quotes_BTCF0:USTF0_20241218
["timestamp","ask_amount","ask_price","bid_price","bid_amount"]
[1734517549952,0.01,104230.0,104220.0,1.20279395]
[1734517552054,0.01,104230.0,104220.0,1.1995476]
[1734517552551,0.09621424,104230.0,104220.0,1.1995476]
[1734517552753,0.01,104230.0,104220.0,1.1995476]
[1734517553257,0.09621424,104230.0,104220.0,0.85515298]
[1734517556259,0.09621424,104230.0,104220.0,0.85515438]
[1734517557653,0.09621424,104230.0,104220.0,0.86479793]
[1734517558253,0.01,104230.0,104220.0,1.20919255]
[1734517560061,0.01,104230.0,104220.0,1.23667297]
[1734517561160,0.01,104230.0,104220.0,1.17867505]
[1734517561464,0.01,104230.0,104220.0,1.11617505]
[1734517561656,0.01,104230.0,104220.0,1.14897505]
[1734517562164,0.01,104230.0,104220.0,1.05818019]
[1734517562358,0.01,104230.0,104220.0,1.17417609]
[1734517565067,0.01,104230.0,104220.0,1.17417665]
[1734517567068,0.01,104230.0,104220.0,2.61617873]
[1734517568973,0.057978,104230.0,104220.0,2.61618062]
[1734517569873,0.17659224,104230.0,104220.0,2.61618062]
[1734517570378,0.23459016,104230.0,104220.0,0.71378808]
[1734517570583,0.23459016,104230.0,104220.0,0.70414453]
[1734517570882,0.3494908,104230.0,104220.0,0.93368488]
[1734517571074,0.3494908,104230.0,104220.0,0.63836235]
[1734517571075,0.26327656,104230.0,104220.0,0.63836235]
[1734517571482,0.40696696,104230.0,104220.0,0.63836235]
[1734517576585,0.40696696,104230.0,104220.0,2.13836235]
[1734517578991,0.40696696,104230.0,104220.0,1.77756235]
[1734517580687,0.26327656,104230.0,104220.0,2.13836235]
[1734517581187,0.20527864,104230.0,104220.0,2.19636027]
[1734517581395,0.15730064,104230.0,104220.0,2.19636027]
[1734517581593,0.09620375,104230.0,104220.0,2.31172669]
[1734517581889,0.09620375,104230.0,104220.0,2.25372877]
[1734517585388,0.01,104230.0,104220.0,2.59812339]
[1734517586794,0.01,104230.0,104220.0,2.60785492]
[1734517586990,0.01,104230.0,104220.0,2.549857]
[1734517587198,0.057978,104230.0,104220.0,2.549857]
[1734517587396,0.14418175,104230.0,104220.0,2.20546238]
[1734517588800,0.14418175,104230.0,104220.0,2.60785492]
[1734517589586,0.09620375,104230.0,104220.0,2.60785492]
[1734517590798,0.14418175,104230.0,104220.0,2.60785492]
[1734517591310,0.14418175,104230.0,104220.0,2.2634603]
[1734517595397,0.09620375,104230.0,104220.0,2.2634603]
[1734517595698,0.01,104230.0,104220.0,1.10785492]
[1734517595996,0.01,104230.0,104220.0,2.60785492]
[1734517598302,0.14418175,104230.0,104220.0,2.549857]
[1734517599702,0.14418175,104230.0,104220.0,2.189057]
[1734517599903,0.14418175,104230.0,104220.0,2.549857]
[1734517600703,0.20217967,104230.0,104220.0,2.549857]
[1734517601005,0.14418175,104230.0,104220.0,2.549857]
[1734517601808,0.14418175,104230.0,104220.0,2.20546238]
[1734517602302,0.14418175,104230.0,104220.0,2.549857]
[1734517608103,0.14418175,104230.0,104220.0,2.60785492]
[1734517608294,0.25908239,104230.0,104220.0,2.60785492]
[1734517608902,0.25908239,104230.0,104220.0,2.32090607]
[1734517609215,0.25908239,104230.0,104220.0,2.26290815]
[1734517610110,0.25908239,104230.0,104220.0,1.90210815]
[1734517610298,0.25908239,104230.0,104220.0,2.26290815]
[1734517613513,0.25908239,104230.0,104220.0,1.90210815]
[1734517613810,0.25908239,104230.0,104220.0,2.26290815]
[1734517616206,0.17287864,104230.0,104220.0,2.26290815]
[1734517618815,0.12490064,104230.0,104220.0,2.32090607]
[1734517619008,0.12490064,104230.0,104220.0,2.26290815]
[1734517619513,0.17287864,104230.0,104220.0,2.26290815]
[1734517623117,0.25922103,104230.0,104220.0,2.26290815]
[1734517632419,0.21124303,104230.0,104220.0,2.26290815]
[1734517632820,0.21124303,104230.0,104220.0,2.32090607]
[1734517633120,0.17287864,104230.0,104220.0,2.26290815]
[1734517633513,0.17287864,104230.0,104220.0,2.26618928]
[1734517635314,0.25923777,104230.0,104220.0,2.26618928]
[1734517638626,0.21125977,104230.0,104220.0,2.26618928]
[1734517639125,0.21125977,104230.0,104220.0,2.3241872]
[1734517640326,0.21125977,104230.0,104220.0,2.32418394]
[1734517640523,0.25923777,104230.0,104220.0,2.32418394]
[1734517642028,0.25923777,104230.0,104220.0,2.26618602]
[1734517643331,0.25923777,104230.0,104220.0,2.26618701]
[1734517644626,0.12490064,104230.0,104220.0,2.38218285]
[1734517644825,0.08635874,104230.0,104220.0,2.616645]
[1734517645725,0.08635874,104230.0,104220.0,2.61336614]
[1734517645922,0.09503609,104240.0,104230.0,0.047978]
[1734517646124,0.09503609,104240.0,104230.0,0.8432819]
[1734517646325,0.18135582,104240.0,104230.0,0.8432819]
[1734517646521,0.09503609,104240.0,104230.0,1.13074088]
[1734517647627,0.18133264,104240.0,104230.0,1.13074088]
[1734517648532,0.18133264,104240.0,104230.0,1.16134088]
[1734517648726,0.18133264,104240.0,104230.0,1.16458262]
[1734517651537,0.22930564,104240.0,104230.0,1.16458262]
[1734517651741,0.22930564,104240.0,104230.0,1.16134088]
[1734517651935,0.22930564,104240.0,104230.0,1.13074088]
[1734517652339,0.28730356,104240.0,104230.0,0.69623698]
[1734517652537,0.26280701,104240.0,104230.0,0.69623698]
[1734517653237,0.26280701,104240.0,104230.0,0.33543698]
[1734517653428,0.32158367,104240.0,104230.0,0.56534285]
[1734517654244,0.32158367,104240.0,104230.0,0.27788387]
[1734517654442,0.32158367,104240.0,104230.0,0.92614285]
[1734517655442,0.32158367,104240.0,104230.0,0.56534285]
[1734517656628,0.32158367,104240.0,104230.0,0.92614285]
[1734517658944,0.26358575,104240.0,104230.0,0.92614285]
[1734517659146,0.26358575,104240.0,104230.0,0.98414077]
[1734517659738,0.26358575,104240.0,104230.0,2.48414077]
[1734517660343,0.26358575,104240.0,104230.0,2.42614285]
[1734517661339,0.32158367,104240.0,104230.0,2.42614285]
[1734517662844,0.26358575,104240.0,104230.0,2.42614285]
[1734517663643,0.26358575,104240.0,104230.0,2.2542349]
[1734517663845,0.08919535,104240.0,104230.0,2.2542349]
[1734517664250,0.17547122,104240.0,104230.0,2.2542349]
[1734517665745,0.17547122,104240.0,104230.0,2.59924088]
[1734517666045,0.17547122,104240.0,104230.0,2.2542349]
[1734517667051,0.19473775,104240.0,104230.0,2.2542349]
[1734517669153,0.10846188,104240.0,104230.0,2.2542349]
[1734517671144,0.05809535,104240.0,104230.0,2.2542349]
[1734517671746,0.01012235,104240.0,104230.0,2.2542349]
[1734517673850,0.01012235,104240.0,104230.0,2.2857349]
[1734517674445,0.01012235,104240.0,104230.0,2.3167349]
[1734517674852,0.09639971,104240.0,104230.0,2.3167349]
[1734517675048,0.09639971,104240.0,104230.0,2.3742819]
[1734517675354,0.09639971,104240.0,104230.0,2.37758893]
[1734517677753,0.09639971,104240.0,104230.0,2.37758954]
[1734517678146,0.09639971,104240.0,104230.0,0.87758954]
[1734517683853,0.01012235,104240.0,104230.0,0.87758954]
[1734517684160,0.09639971,104240.0,104230.0,0.87758954]
[1734517684658,0.09639971,104240.0,104230.0,0.88758954]
[1734517685949,0.09639971,104240.0,104230.0,0.60058148]
[1734517686256,0.08627736,104250.0,104230.0,0.70631302]
[1734517686559,0.1916564,104260.0,104230.0,0.70631302]
[1734517686560,0.13424336,104260.0,104240.0,1.23547575]
[1734517686859,0.13424336,104260.0,104250.0,0.98319278]
[1734517687161,0.13434709,104260.0,104250.0,0.98648577]
[1734517688546,0.19234501,104260.0,104250.0,0.64158153]
[1734517688745,0.22234501,104260.0,104250.0,0.64158153]
[1734517689159,0.16434709,104260.0,104250.0,0.64158153]
[1734517689358,0.16434709,104260.0,104250.0,0.64158558]
[1734517690256,0.16434709,104260.0,104250.0,0.6995835]
[1734517691952,0.07806973,104260.0,104250.0,0.6995835]
[1734517693255,0.07806973,104260.0,104250.0,0.69628646]
[1734517693555,0.07806973,104260.0,104250.0,0.69959045]
[1734517695554,0.07806973,104260.0,104250.0,0.64159253]
[1734517698366,0.07806973,104260.0,104250.0,0.64159146]
[1734517698669,0.13606765,104260.0,104250.0,0.64159146]
[1734517698961,0.07806973,104260.0,104250.0,0.64159146]
[1734517700964,0.13606765,104260.0,104250.0,0.64159146]
[1734517701464,0.27975805,104260.0,104250.0,0.64159146]
[1734517701960,0.22176013,104260.0,104250.0,0.64159146]
[1734517704167,0.22176013,104260.0,104250.0,0.64159286]
[1734517704362,0.22176013,104260.0,104250.0,0.6415929]
[1734517704563,0.22176013,104260.0,104250.0,0.92849922]
[1734517704767,0.3367487,104260.0,104250.0,0.92849922]
[1734517705268,0.39474662,104260.0,104250.0,0.92849922]
[1734517705655,0.3367487,104260.0,104250.0,0.92849922]
[1734517706466,0.3367487,104260.0,104250.0,0.98649714]
[1734517707070,0.3367487,104260.0,104250.0,0.9864991]
[1734517709469,0.3067487,104260.0,104250.0,0.9864991]
[1734517709974,0.3067487,104260.0,104250.0,0.98650904]
[1734517711777,0.19176013,104260.0,104250.0,0.98651312]
[1734517712875,0.19176013,104260.0,104250.0,0.9285152]
[1734517713267,0.19176013,104260.0,104250.0,0.98651312]
[1734517714471,0.19176013,104260.0,104250.0,0.75703258]
[1734517714868,0.19176013,104260.0,104250.0,0.39623258]
[1734517715174,0.19176013,104260.0,104250.0,0.75703258]
[1734517715370,0.19176013,104260.0,104250.0,0.69903466]
[1734517715877,0.19176013,104260.0,104250.0,0.6990296]
[1734517717777,0.19176013,104260.0,104250.0,0.69571432]
[1734517718278,0.19176013,104260.0,104250.0,0.69902958]
[1734517719276,0.19176013,104260.0,104250.0,0.70234504]
[1734517721669,0.19176013,104260.0,104250.0,0.69902958]
[1734517721876,0.19176013,104260.0,104250.0,0.69571432]
[1734517724481,0.19176013,104260.0,104250.0,0.69903565]
[1734517725881,0.19176013,104260.0,104250.0,0.69571432]
[1734517726475,0.19176013,104260.0,104250.0,0.69903588]
[1734517727077,0.19176013,104260.0,104250.0,0.70881342]
[1734517727278,0.19176013,104260.0,104250.0,1.05310101]
[1734517727670,0.19176013,104260.0,104250.0,0.34801342]
[1734517727881,0.36418861,104260.0,104250.0,0.34801342]
[1734517728276,0.19176013,104260.0,104250.0,0.33823588]
[1734517728777,0.19176013,104260.0,104250.0,0.69903588]
[1734517729879,0.19176013,104260.0,104250.0,0.33823588]
[1734517730079,0.19176013,104260.0,104250.0,0.69903588]
[1734517730279,0.19176013,104260.0,104250.0,0.33823588]
[1734517730475,0.19176013,104260.0,104250.0,0.69903588]
[1734517731477,0.19176013,104260.0,104250.0,0.33823588]
[1734517732286,0.19176013,104260.0,104250.0,0.69903588]
[1734517732783,0.19176013,104260.0,104250.0,0.7570338]
[1734517732986,0.19176013,104260.0,104250.0,0.3962338]
[1734517733288,0.19176013,104260.0,104250.0,0.33823588]
[1734517733489,0.19176013,104260.0,104250.0,0.69903588]
[1734517733689,0.19176013,104260.0,104250.0,0.7570338]
[1734517734885,0.19176013,104260.0,104250.0,0.75703395]
[1734517739886,0.19176013,104260.0,104250.0,0.78723395]
[1734517740681,0.19176013,104260.0,104250.0,0.78391224]
[1734517740883,0.19176013,104260.0,104250.0,0.78723179]
[1734517742689,0.19176013,104260.0,104250.0,0.78723083]
[1734517745397,0.30685474,104260.0,104250.0,0.78723083]
[1734517746390,0.30685474,104260.0,104250.0,1.13147842]
[1734517746594,0.30685474,104260.0,104250.0,1.12815983]
[1734517746797,0.30685474,104260.0,104250.0,1.13148033]
[1734517747694,0.30685474,104260.0,104250.0,1.14125787]
[1734517749696,0.30685474,104260.0,104250.0,1.13148353]
[1734517750105,0.25888874,104260.0,104250.0,0.84519386]
[1734517750291,0.11519834,104260.0,104250.0,1.25248145]
[1734517750788,0.20150448,104260.0,104250.0,0.96557513]
[1734517752296,0.20150448,104260.0,104250.0,0.90757721]
[1734517752492,0.20150448,104260.0,104250.0,0.90757034]
[1734517754100,0.20150448,104260.0,104250.0,0.96556826]
[1734517754401,0.08640987,104260.0,104250.0,0.96556826]
[1734517754610,0.08640987,104260.0,104250.0,0.90757034]
[1734517754794,0.08640987,104260.0,104250.0,0.91734788]
[1734517755905,0.08640987,104260.0,104250.0,0.9753458]
[1734517757396,0.24300075,104270.0,104250.0,0.9753458]
[1734517757601,0.24300075,104270.0,104260.0,0.76360934]
[1734517757811,0.24300075,104270.0,104260.0,0.76692617]
[1734517757996,0.24300075,104270.0,104260.0,0.77670371]
[1734517758398,0.24300075,104270.0,104260.0,0.81489017]
[1734517758593,0.24307073,104270.0,104260.0,0.81489017]
[1734517758799,0.23307073,104270.0,104260.0,0.81489017]
[1734517759205,0.20147073,104270.0,104260.0,0.81489017]
[1734517760706,0.08637612,104270.0,104260.0,0.81489017]
[1734517761405,0.08637612,104270.0,104260.0,0.81488563]
[1734517762207,0.08637612,104270.0,104260.0,1.15917322]
[1734517762407,0.08637612,104270.0,104260.0,0.81488563]
[1734517762599,0.08637612,104270.0,104260.0,1.15917322]
[1734517763203,0.08637612,104270.0,104260.0,1.1591704]
[1734517763502,0.08637612,104270.0,104260.0,0.81488281]
[1734517763903,6.998e-05,104270.0,104260.0,1.16894794]
[1734517764506,6.998e-05,104270.0,104260.0,1.16894737]
[1734517765399,6.998e-05,104270.0,104260.0,1.15916983]
[1734517765802,0.08637612,104270.0,104260.0,0.81488224]
[1734517766400,0.08637612,104270.0,104260.0,0.82453059]
[1734517766907,6.998e-05,104270.0,104260.0,0.82122169]
[1734517768204,6.998e-05,104270.0,104260.0,0.82453279]
[1734517768399,6.998e-05,104270.0,104260.0,1.16882038]
[1734517768707,6.998e-05,104270.0,104260.0,0.88200688]
[1734517769110,6.998e-05,104270.0,104260.0,1.16843036]
[1734517770596,6.998e-05,104270.0,104260.0,1.1783756]
[1734517770806,0.08630614,104280.0,104270.0,0.05799792]
[1734517771005,0.08630614,104280.0,104270.0,0.47006802]
[1734517771203,0.08630614,104280.0,104270.0,0.47010802]
[1734517771511,0.08630614,104280.0,104270.0,0.69853358]
[1734517771710,0.08640835,104280.0,104270.0,0.7565315]
[1734517772399,0.08640835,104280.0,104270.0,0.81452942]
[1734517772600,0.00010221,104280.0,104270.0,0.81452942]
[1734517773412,0.00010221,104280.0,104270.0,0.69853358]
[1734517773710,0.00010221,104280.0,104270.0,0.75652725]
[1734517773915,0.11680835,104280.0,104270.0,0.75652725]
[1734517782519,0.11680835,104280.0,104270.0,0.7532204]
[1734517783120,0.11680835,104280.0,104270.0,0.75650091]
[1734517783509,0.23190296,104280.0,104270.0,0.69850299]
[1734517783819,0.23190296,104280.0,104270.0,0.75648648]
[1734517784918,0.23190296,104280.0,104270.0,0.98573796]
[1734517785219,0.23190296,104280.0,104270.0,0.9857413]
[1734517785421,0.23190296,104280.0,104270.0,0.75648648]
[1734517786518,0.23190296,104280.0,104270.0,0.75646932]
[1734517787417,0.11519682,104280.0,104270.0,0.75646932]
[1734517787613,0.11519682,104280.0,104270.0,0.81446724]
[1734517787614,0.20142116,104280.0,104270.0,0.81446724]
[1734517788026,0.20142116,104280.0,104270.0,0.84656724]
[1734517788537,0.08632655,104280.0,104270.0,0.90443135]
[1734517788713,0.08632655,104280.0,104270.0,0.96853135]
[1734517789625,0.08632655,104280.0,104270.0,0.96853785]
[1734517792622,0.08632655,104280.0,104270.0,0.96853104]
[1734517793831,0.00010221,104280.0,104270.0,0.96853104]
[1734517795435,0.00010221,104280.0,104270.0,0.96528243]
[1734517795626,0.00010221,104280.0,104270.0,0.96852744]
[1734517795926,0.00010221,104280.0,104270.0,0.97838078]
[1734517798426,0.21131895,104290.0,104280.0,0.16395084]
[1734517798624,0.21131895,104290.0,104280.0,0.81455418]
[1734517798821,0.21131895,104290.0,104280.0,0.81459418]
[1734517799328,0.21141141,104290.0,104280.0,0.81459418]
[1734517800235,0.21141141,104290.0,104280.0,0.28053183]
[1734517800236,0.65233078,104290.0,104280.0,0.28053183]
[1734517800537,1.12475926,104290.0,104270.0,0.69531533]
[1734517800735,0.39721045,104280.0,104270.0,0.69531533]
[1734517800923,0.33921253,104280.0,104270.0,0.408757]
[1734517801124,0.28225155,104280.0,104270.0,0.408757]
[1734517801933,0.39719681,104280.0,104270.0,0.408757]
[1734517803040,0.33919889,104280.0,104270.0,0.46675492]
[1734517803440,0.20110578,104280.0,104270.0,0.84441117]
[1734517803734,0.21127824,104290.0,104280.0,0.047955]
[1734517803935,0.21127824,104290.0,104280.0,0.69521772]
[1734517804141,0.21127824,104290.0,104280.0,0.46679292]
[1734517804338,0.26879037,104290.0,104280.0,0.46679292]
[1734517804533,0.26879037,104290.0,104280.0,0.408795]
[1734517804534,0.17304174,104290.0,104280.0,0.408795]
[1734517804839,0.21127008,104290.0,104280.0,0.46679292]
[1734517805033,0.12509174,104290.0,104280.0,0.52479084]
[1734517805438,0.12509174,104290.0,104280.0,0.46679292]
[1734517805733,0.21126756,104290.0,104280.0,0.81125356]
[1734517807637,0.01017246,104290.0,104280.0,0.52479084]
[1734517808639,0.09633739,104290.0,104280.0,0.81118534]
[1734517810239,0.09633739,104290.0,104280.0,0.82090568]
[1734517815737,0.09633739,104290.0,104280.0,0.76290776]
[1734517817850,0.21122396,104290.0,104280.0,0.76290776]
[1734517818434,0.09633739,104290.0,104280.0,0.76290776]
[1734517818835,0.09633739,104290.0,104280.0,0.82090568]
[1734517819050,0.21122396,104290.0,104280.0,0.76290776]
[1734517819441,0.09633739,104290.0,104280.0,0.76290776]
[1734517819751,0.21122396,104290.0,104280.0,0.76290776]
[1734517819950,0.14428739,104290.0,104280.0,0.76290776]
[1734517820251,0.25917396,104290.0,104280.0,0.76290776]
[1734517824046,0.25917396,104290.0,104280.0,0.65695484]
[1734517824255,0.6205286,104290.0,104280.0,4e-05]
[1734517824441,0.6810286,104290.0,104280.0,4e-05]
[1734517824844,0.70975024,104290.0,104280.0,4e-05]
[1734517825852,0.85331794,104290.0,104280.0,4e-05]
[1734517826153,0.34663724,104290.0,104280.0,0.10599292]
[1734517826855,0.20306954,104290.0,104280.0,0.10599292]
[1734517827244,0.2891968,104290.0,104280.0,0.10599292]
[1734517827649,0.34663724,104290.0,104280.0,0.10599292]
[1734517829743,0.40463516,104290.0,104280.0,0.047995]
[1734517829948,0.34663724,104290.0,104280.0,0.047995]
[1734517830346,0.12501954,104290.0,104280.0,0.16399084]
[1734517830653,0.2011457,104290.0,104280.0,0.10599292]
[1734517831552,0.2490957,104290.0,104280.0,0.10599292]
[1734517832147,0.2490957,104290.0,104280.0,0.047995]
[1734517832348,0.16296954,104290.0,104280.0,0.047995]
[1734517832757,0.16296954,104290.0,104280.0,0.10599292]
[1734517833642,0.20118511,104290.0,104280.0,0.10599292]
[1734517834052,0.11501954,104290.0,104280.0,0.52479084]
[1734517834251,0.2011805,104290.0,104280.0,0.84228534]
[1734517834647,0.2011805,104290.0,104280.0,0.78428742]
[1734517835748,0.08633342,104290.0,104280.0,0.78428742]
[1734517836658,0.08633342,104290.0,104280.0,0.79377975]
[1734517838350,0.2011805,104290.0,104280.0,0.79377975]
[1734517839049,0.2011805,104290.0,104280.0,0.85177767]
[1734517841448,0.66792842,104290.0,104280.0,0.3343895]
[1734517841656,0.66792842,104290.0,104280.0,0.047995]
[1734517841657,0.72533516,104290.0,104280.0,0.047995]
[1734517841955,0.67308808,104290.0,104280.0,0.047995]
[1734517842159,0.61509016,104290.0,104280.0,0.10599292]
[1734517842357,0.58509016,104290.0,104280.0,0.10599292]
[1734517842754,0.58509016,104290.0,104280.0,0.047995]
[1734517842957,0.55249016,104290.0,104280.0,0.047995]
[1734517844462,0.66739087,104290.0,104280.0,0.047995]
[1734517846169,0.72538879,104290.0,104280.0,0.047995]
[1734517847065,0.66739087,104290.0,104280.0,0.047995]
[1734517847266,0.72538879,104290.0,104280.0,0.047995]
[1734517847464,0.61048808,104290.0,104280.0,0.047995]
[1734517849467,0.72540098,104290.0,104280.0,0.047995]
[1734517849973,0.61048808,104290.0,104280.0,0.047995]
[1734517850169,0.64188808,104290.0,104280.0,0.047995]
[1734517850365,0.64188808,104290.0,104280.0,4e-05]
[1734517850571,0.81421794,104290.0,104280.0,4e-05]
[1734517856975,0.72069425,104290.0,104280.0,0.03201579]
[1734517857179,0.76864425,104290.0,104280.0,0.03201579]
[1734517857381,0.59631439,104290.0,104280.0,0.03201579]
[1734517857887,0.59639879,104290.0,104280.0,0.03201579]
[1734517861074,0.59639879,104290.0,104280.0,0.03044097]
[1734517862985,0.28100002,104290.0,104280.0,0.03044097]
[1734517863184,0.28100002,104290.0,104280.0,0.03043744]
[1734517863883,0.28100002,104290.0,104280.0,0.03039744]
[1734517864385,0.30033831,104290.0,104280.0,0.03039744]
[1734517867087,0.27036408,104290.0,104280.0,0.03039744]
[1734517867991,0.27036408,104290.0,104280.0,0.25965272]
[1734517868583,0.27036408,104290.0,104280.0,0.03039744]
[1734517868584,0.44269394,104290.0,104280.0,0.03039744]
[1734517870382,0.32910047,104290.0,104280.0,0.25965272]
[1734517871993,0.2881805,104290.0,104280.0,0.25965272]
[1734517874195,0.3075678,104290.0,104280.0,0.25965272]
[1734517875290,0.3075678,104290.0,104280.0,0.25351628]
[1734517875497,0.3075678,104290.0,104280.0,0.25751731]
[1734517876793,0.6683678,104290.0,104280.0,0.25751731]
[1734517877188,0.66861707,104290.0,104280.0,0.25776076]
[1734517877792,0.66861707,104290.0,104280.0,0.25776625]
[1734517877997,0.66861707,104290.0,104280.0,0.24791291]
[1734517878284,0.69019875,104290.0,104280.0,0.02826752]
[1734517878489,0.74819667,104290.0,104280.0,0.02826752]
[1734517878992,0.69019875,104290.0,104280.0,0.02826752]
[1734517879890,0.74819667,104290.0,104280.0,0.02826752]
[1734517880492,1.04698389,104290.0,104280.0,0.02826752]
[1734517880693,0.047955,104280.0,104270.0,0.22949873]
[1734517880897,0.047959,104270.0,104260.0,0.54757215]
[1734517881101,0.2305812,104270.0,104260.0,0.54757215]
[1734517881301,0.2785402,104270.0,104260.0,0.54757215]
[1734517881498,0.10595692,104270.0,104260.0,0.26069873]
[1734517882087,0.46675692,104270.0,104260.0,0.26069873]
[1734517882805,0.408759,104270.0,104260.0,0.26069873]
[1734517883097,0.46675692,104270.0,104260.0,0.26069873]
[1734517885598,0.58166204,104270.0,104260.0,0.26069873]
[1734517886701,0.58166204,104270.0,104260.0,0.0312]
[1734517886898,0.56007623,104270.0,104260.0,0.0312]
[1734517887595,0.44517111,104270.0,104260.0,0.0312]
[1734517888599,0.44517111,104270.0,104260.0,0.03883927]
[1734517889397,0.44517111,104270.0,104260.0,0.03882963]
[1734517889610,0.45478316,104270.0,104260.0,0.03882963]
[1734517890601,0.45478316,104270.0,104260.0,0.05675499]
[1734517891297,0.45478316,104270.0,104260.0,0.04506025]
[1734517892300,0.45478316,104270.0,104260.0,0.01386025]
[1734517892809,0.45478316,104270.0,104260.0,0.0176511]
[1734517894110,0.47380798,104270.0,104260.0,0.0176511]
[1734517894701,0.47380798,104270.0,104260.0,0.02935391]
[1734517895009,0.47380798,104270.0,104260.0,0.0176511]
[1734517896906,0.61731122,104270.0,104260.0,0.0176511]
[1734517897701,0.67530914,104270.0,104260.0,0.0176511]
[1734517897905,0.61731122,104270.0,104260.0,0.0176511]
[1734517898206,0.61731122,104270.0,104260.0,0.01805383]
[1734517898207,0.66527022,104270.0,104260.0,0.01805383]
[1734517899205,0.72326814,104270.0,104260.0,0.01805383]
[1734517899403,0.66527022,104270.0,104260.0,0.01805383]
[1734517899804,0.66527022,104270.0,104260.0,0.02645102]
[1734517900103,0.8375045,104270.0,104260.0,0.02645102]
[1734517900500,0.8375045,104270.0,104260.0,0.03790818]
[1734517900909,0.8375045,104270.0,104260.0,0.03740404]
[1734517901117,0.8375045,104270.0,104260.0,0.02594688]
[1734517902008,0.85909031,104270.0,104260.0,0.02594885]
[1734517902719,0.68686984,104270.0,104260.0,0.02594885]
[1734517903123,0.85909031,104270.0,104260.0,0.02594885]
[1734517903304,1.21349031,104270.0,104260.0,0.006104]
[1734517903509,0.047964,104260.0,104250.0,0.0418]
[1734517903717,0.66772394,104260.0,104250.0,0.0418]
[1734517904019,0.66780394,104260.0,104250.0,0.0502006]
[1734517904308,0.58167736,104260.0,104250.0,0.06996384]
[1734517904509,0.72519441,104260.0,104250.0,0.0588508]
[1734517904702,0.58167736,104260.0,104250.0,0.0588508]
[1734517905508,0.72519441,104260.0,104250.0,0.04772661]
[1734517905818,0.72519441,104260.0,104250.0,0.08430267]
[1734517906514,0.52483984,104260.0,104250.0,0.2816213]
[1734517906707,0.69865538,104260.0,104250.0,0.0413747]
[1734517907715,0.87087585,104260.0,104250.0,0.0413747]
[1734517907913,0.87087585,104260.0,104250.0,0.05250267]
[1734517908219,0.87087585,104260.0,104250.0,0.0413747]
[1734517908413,0.87087585,104260.0,104250.0,0.05251766]
[1734517908918,0.87087585,104260.0,104250.0,0.05251848]
[1734517909413,0.87087585,104260.0,104250.0,0.03547303]
[1734517909715,0.69865538,104260.0,104250.0,0.04414719]
[1734517910512,0.69865538,104260.0,104250.0,0.27326582]
[1734517911221,0.87087585,104260.0,104250.0,0.27326582]
[1734517911419,0.66845538,104260.0,104250.0,0.26212286]
[1734517911807,0.66845538,104260.0,104250.0,0.29402286]
[1734517912523,0.61045746,104260.0,104250.0,0.29402286]
[1734517913914,0.66845538,104260.0,104250.0,0.29402286]
[1734517914527,0.66845538,104260.0,104250.0,0.29449632]
[1734517915409,0.66845538,104260.0,104250.0,0.26259632]
[1734517915612,0.69865538,104260.0,104250.0,0.26259632]
[1734517915820,0.87087585,104260.0,104250.0,0.26781267]
[1734517916220,0.82291185,104260.0,104250.0,0.26781267]
[1734517916419,0.87087585,104260.0,104250.0,0.26781267]
[1734517916915,0.84928779,104260.0,104250.0,0.26781267]
[1734517919318,0.67706732,104260.0,104250.0,0.25666971]
[1734517919710,0.84928779,104260.0,104250.0,0.24903775]
[1734517920619,0.88048779,104260.0,104250.0,0.24903775]
[1734517921625,0.78600001,104260.0,104250.0,0.24903775]
[1734517921920,0.24957746,104260.0,104250.0,0.60983775]
[1734517922118,0.24957746,104260.0,104250.0,0.64273775]
[1734517922524,0.30757538,104260.0,104250.0,0.64273775]
[1734517922821,0.24957746,104260.0,104250.0,0.66128994]
[1734517923216,0.24957746,104260.0,104250.0,0.30048994]
[1734517923418,0.24957746,104260.0,104250.0,0.30077432]
[1734517924817,0.24957746,104260.0,104250.0,0.94797261]
[1734517925219,0.19157954,104260.0,104250.0,0.99594061]
[1734517925422,0.36461854,104260.0,104250.0,0.76682198]
[1734517925634,0.31665454,104260.0,104250.0,0.79722198]
[1734517926010,0.31665454,104260.0,104250.0,0.43642198]
[1734517926217,0.28667304,104260.0,104250.0,0.43642198]
[1734517926418,0.28667304,104260.0,104250.0,0.43751006]
[1734517926825,0.33463704,104260.0,104250.0,0.43751006]
[1734517927424,0.33463704,104260.0,104250.0,0.38954206]
[1734517927623,0.28759388,104260.0,104250.0,0.58871548]
[1734517928612,0.28759388,104260.0,104250.0,0.30231719]
[1734517928813,0.82061435,104260.0,104250.0,0.58871548]
[1734517929018,0.82061435,104260.0,104250.0,0.25871556]
[1734517929019,0.64839388,104260.0,104250.0,0.25871556]
[1734517929333,0.88351435,104260.0,104250.0,0.26998955]
[1734517930225,0.88351435,104260.0,104250.0,0.25871556]
[1734517930417,0.71129388,104260.0,104250.0,0.25871556]
[1734517930624,0.88351435,104260.0,104250.0,0.27053107]
[1734517930825,0.7699788,104260.0,104250.0,0.27053107]
[1734517931319,0.82797672,104260.0,104250.0,0.25871556]
[1734517931519,0.047968,104250.0,104240.0,0.40195195]
[1734517931734,0.75131401,104250.0,104240.0,0.17237853]
[1734517931921,0.69745408,104250.0,104240.0,0.00457833]
[1734517932622,0.69745408,104250.0,104240.0,0.00457582]
[1734517932929,0.69745408,104250.0,104240.0,0.00011469]
[1734517933332,0.5346353,104250.0,104240.0,0.00011469]
[1734517933634,0.70706538,104250.0,104240.0,0.00011469]
[1734517935027,0.59106954,104250.0,104240.0,0.00011469]
[1734517935222,0.64906746,104250.0,104240.0,0.03331469]
[1734517935738,0.47663738,104250.0,104240.0,0.03331469]
[1734517939632,0.47663738,104250.0,104240.0,0.04113119]
[1734517940943,0.11583738,104250.0,104240.0,0.04113715]
[1734517941151,0.06335785,104250.0,104240.0,0.14710807]
[1734517941338,0.14949883,104250.0,104240.0,0.5192498]
[1734517941535,0.14949883,104250.0,104240.0,0.75520094]
[1734517941729,0.04416529,104250.0,104240.0,0.75535202]
[1734517941934,0.10216321,104250.0,104240.0,1.04175031]
[1734517942239,0.05799792,104250.0,104240.0,0.98375239]
[1734517943156,0.05799792,104250.0,104240.0,0.98312405]
[1734517943645,0.05799792,104250.0,104240.0,0.98693486]
[1734517943842,0.05799792,104250.0,104240.0,0.98693467]
[1734517946645,0.05799792,104250.0,104240.0,0.98701648]
[1734517949839,0.10596592,104250.0,104240.0,0.98701648]
[1734517950349,0.047968,104250.0,104240.0,0.74610133]
[1734517950546,0.047968,104250.0,104240.0,0.98657336]
[1734517950945,0.047968,104250.0,104240.0,0.68883334]
[1734517951151,0.047968,104250.0,104240.0,0.97523163]
[1734517951450,0.047968,104250.0,104240.0,0.68883334]
[1734517951649,0.10596592,104250.0,104240.0,0.68883334]
[1734517951852,0.10596592,104250.0,104240.0,0.68937423]
[1734517955659,0.10596592,104250.0,104240.0,0.68890251]
[1734517955846,0.047968,104250.0,104240.0,0.68890251]
[1734517956043,0.07598292,104250.0,104240.0,0.70024424]
[1734517956257,0.03641017,104250.0,104240.0,0.70024424]
[1734517957042,0.08437817,104250.0,104240.0,0.70024424]
[1734517958352,0.08437817,104250.0,104240.0,0.98671139]